[Event "Late-Titled-Tuesday-Blitz-August-29-2023"]
[Site "Chess.com"]
[Date "2023.08.29"]
[Round "8"]
[White "AlexOstrovskiy"]
[Black "Der_Honigdachs"]
[Result "1-0"]
[WhiteElo "2680"]
[BlackElo "2513"]
[TimeControl "180+1"]
[EndTime "15:27:19 PDT"]
[Termination "AlexOstrovskiy won by resignation"]

1. d4 {[%clk 0:03:00.9]} 1... Nf6 {[%clk 0:02:53.9]} 2. Bf4 {[%clk 0:03:00.9]}
2... c5 {[%clk 0:02:49.7]} 3. dxc5 {[%clk 0:03:01.1]} 3... Qa5+ {[%clk
0:02:48.6]} 4. Nc3 {[%clk 0:02:59]} 4... Ne4 {[%clk 0:02:46.8]} 5. Qd3 {[%clk
0:02:51.2]} 5... Nxc3 {[%clk 0:02:45.8]} 6. Bd2 {[%clk 0:02:48.4]} 6... Qxc5
{[%clk 0:02:43.9]} 7. Bxc3 {[%clk 0:02:45.6]} 7... Nc6 {[%clk 0:02:43.3]} 8. e4
{[%clk 0:02:45.6]} 8... d6 {[%clk 0:02:33.7]} 9. f4 {[%clk 0:02:44.9]} 9... f5
{[%clk 0:02:23.5]} 10. Nf3 {[%clk 0:02:21.9]} 10... fxe4 {[%clk 0:02:19.3]} 11.
Qxe4 {[%clk 0:02:22.8]} 11... Bf5 {[%clk 0:02:18.7]} 12. Qe2 {[%clk 0:02:23.2]}
12... Rc8 {[%clk 0:02:08]} 13. O-O-O {[%clk 0:02:18.8]} 13... Nb4 {[%clk
0:02:05.3]} 14. Qb5+ {[%clk 0:02:16.3]} 14... Qxb5 {[%clk 0:01:56.8]} 15. Bxb5+
{[%clk 0:02:17.2]} 15... Kd8 {[%clk 0:01:57.3]} 16. Kd2 {[%clk 0:01:52.5]} 16...
Nxa2 {[%clk 0:01:53.8]} 17. Ba5+ {[%clk 0:01:38.5]} 17... b6 {[%clk 0:01:52.7]}
18. Nd4 {[%clk 0:01:38.9]} 18... bxa5 {[%clk 0:01:43.9]} 19. Nxf5 {[%clk
0:01:37.6]} 19... Rc5 {[%clk 0:01:36.4]} 20. Nd4 {[%clk 0:01:37.8]} 20... Nb4
{[%clk 0:01:32.4]} 21. Ne6+ {[%clk 0:01:36.9]} 21... Kc8 {[%clk 0:01:27.4]} 22.
Nxc5 {[%clk 0:01:37.5]} 22... dxc5 {[%clk 0:01:27.6]} 23. c3 {[%clk 0:01:31]}
23... Nd5 {[%clk 0:01:26.6]} 24. f5 {[%clk 0:01:24.4]} 24... g6 {[%clk
0:01:25.2]} 25. fxg6 {[%clk 0:01:15.8]} 25... hxg6 {[%clk 0:01:26]} 26. Kc1
{[%clk 0:01:13.2]} 26... e6 {[%clk 0:01:08.7]} 27. Bc4 {[%clk 0:01:00]} 27...
Ne3 {[%clk 0:01:02.1]} 28. Bxe6+ {[%clk 0:00:59.7]} 28... Kc7 {[%clk 0:01:02.2]}
29. Rd7+ {[%clk 0:00:57]} 29... Kb6 {[%clk 0:01:02.2]} 30. g3 {[%clk 0:00:50]}
30... Bh6 {[%clk 0:00:59.7]} 31. Kb1 {[%clk 0:00:50.3]} 31... Re8 {[%clk
0:00:58]} 32. Bf7 {[%clk 0:00:50.8]} 32... Re4 {[%clk 0:00:55.4]} 33. Bxg6
{[%clk 0:00:50.7]} 33... Re6 {[%clk 0:00:52.7]} 34. Bf7 {[%clk 0:00:49.1]} 34...
Rf6 {[%clk 0:00:52.5]} 35. Re1 {[%clk 0:00:42.8]} 35... a4 {[%clk 0:00:44.8]}
36. Re7 {[%clk 0:00:41.2]} 36... Ka5 {[%clk 0:00:41.8]} 37. Rxa7+ {[%clk
0:00:38.1]} 37... Kb6 {[%clk 0:00:41.7]} 38. Re7 {[%clk 0:00:38.9]} 38... Kb5
{[%clk 0:00:41.9]} 39. Be8+ {[%clk 0:00:38.3]} 39... Kc4 {[%clk 0:00:41.6]} 40.
R7xe3 {[%clk 0:00:38]} 40... Bxe3 {[%clk 0:00:39.6]} 41. Rxe3 {[%clk 0:00:38.9]}
41... Kb3 {[%clk 0:00:39]} 42. c4+ {[%clk 0:00:36.9]} 42... Kxc4 {[%clk
0:00:38.2]} 43. Bxa4 {[%clk 0:00:36.5]} 43... Kb4 {[%clk 0:00:37.8]} 44. Bc2
{[%clk 0:00:35]} 44... Rf1+ {[%clk 0:00:36]} 45. Ka2 {[%clk 0:00:35.3]} 45...
Rf2 {[%clk 0:00:36.7]} 46. Rb3+ {[%clk 0:00:34.9]} 46... Kc4 {[%clk 0:00:36.4]}
47. Bd3+ {[%clk 0:00:34.4]} 47... Kd4 {[%clk 0:00:36.8]} 48. Bb5 {[%clk
0:00:27.4]} 48... Rxh2 {[%clk 0:00:35.2]} 49. Rd3+ {[%clk 0:00:27.8]} 49... Ke4
{[%clk 0:00:34.4]} 50. Kb3 {[%clk 0:00:28.2]} 50... Rg2 {[%clk 0:00:32.8]} 51.
Bc6+ {[%clk 0:00:27.8]} 1-0

[Event "Late-Titled-Tuesday-Blitz-August-29-2023"]
[Site "Chess.com"]
[Date "2023.08.29"]
[Round "8"]
[White "Mops_2004"]
[Black "h4parah5"]
[Result "1-0"]
[WhiteElo "2784"]
[BlackElo "2945"]
[TimeControl "180+1"]
[EndTime "15:27:26 PDT"]
[Termination "Mops_2004 won by resignation"]

1. Nf3 {[%clk 0:03:00.9]} 1... Nf6 {[%clk 0:02:58.6]} 2. g3 {[%clk 0:03:01]}
2... c5 {[%clk 0:02:58.1]} 3. Bg2 {[%clk 0:03:00.4]} 3... Nc6 {[%clk 0:02:58.7]}
4. O-O {[%clk 0:02:59.4]} 4... e5 {[%clk 0:02:58.8]} 5. d3 {[%clk 0:02:59.3]}
5... d5 {[%clk 0:02:59.1]} 6. e4 {[%clk 0:02:57.9]} 6... d4 {[%clk 0:02:59.4]}
7. a4 {[%clk 0:02:57.1]} 7... Be7 {[%clk 0:02:56.1]} 8. Na3 {[%clk 0:02:56.5]}
8... Be6 {[%clk 0:02:55.9]} 9. Ng5 {[%clk 0:02:46.8]} 9... Bg4 {[%clk
0:02:54.2]} 10. f3 {[%clk 0:02:47]} 10... Bh5 {[%clk 0:02:54.3]} 11. h4 {[%clk
0:02:46.6]} 11... Nd7 {[%clk 0:02:49.5]} 12. Nh3 {[%clk 0:02:43.7]} 12... f6
{[%clk 0:02:48.4]} 13. Nf2 {[%clk 0:02:43.1]} 13... Bf7 {[%clk 0:02:41.5]} 14.
Bh3 {[%clk 0:02:41.4]} 14... O-O {[%clk 0:02:33.8]} 15. Bd2 {[%clk 0:02:37.3]}
15... b6 {[%clk 0:02:32.4]} 16. f4 {[%clk 0:02:24]} 16... a6 {[%clk 0:02:30.1]}
17. h5 {[%clk 0:02:17.5]} 17... h6 {[%clk 0:02:23]} 18. Bf5 {[%clk 0:02:16.3]}
18... Qe8 {[%clk 0:02:09.8]} 19. Qg4 {[%clk 0:02:04.3]} 19... Ra7 {[%clk
0:02:08.8]} 20. Bg6 {[%clk 0:01:56.6]} 20... Kh8 {[%clk 0:02:04.8]} 21. Nc4
{[%clk 0:01:41.1]} 21... Rb7 {[%clk 0:02:02.6]} 22. Qf5 {[%clk 0:01:26.2]} 22...
Qd8 {[%clk 0:01:51.3]} 23. Bxf7 {[%clk 0:01:19.2]} 23... Rxf7 {[%clk 0:01:52.2]}
24. Ng4 {[%clk 0:01:14.1]} 24... exf4 {[%clk 0:01:20.8]} 25. gxf4 {[%clk
0:01:13]} 25... Rf8 {[%clk 0:01:14.5]} 26. Kh1 {[%clk 0:01:01.7]} 26... Qe8
{[%clk 0:01:04.8]} 27. Rg1 {[%clk 0:00:50.5]} 27... Qf7 {[%clk 0:01:04.3]} 28.
Nxh6 {[%clk 0:00:38.1]} 28... gxh6 {[%clk 0:01:02.2]} 29. Rg6 {[%clk 0:00:38.3]}
29... Qh7 {[%clk 0:00:57.6]} 30. Qd5 {[%clk 0:00:35.7]} 30... Ndb8 {[%clk
0:00:45.9]} 31. f5 {[%clk 0:00:29]} 31... Rd7 {[%clk 0:00:42.4]} 32. Qe6 {[%clk
0:00:29.2]} 32... Bd8 {[%clk 0:00:39.4]} 33. Rxh6 {[%clk 0:00:26]} 33... Rg8
{[%clk 0:00:30.8]} 34. Rg1 {[%clk 0:00:20.4]} 34... Rxg1+ {[%clk 0:00:24.2]} 35.
Kxg1 {[%clk 0:00:21.3]} 35... Qxh6 {[%clk 0:00:19.4]} 36. Bxh6 {[%clk
0:00:21.1]} 36... b5 {[%clk 0:00:20.3]} 37. axb5 {[%clk 0:00:20.7]} 37... axb5
{[%clk 0:00:21.2]} 38. Nd6 {[%clk 0:00:19.1]} 38... Kh7 {[%clk 0:00:20.8]} 39.
Bf4 {[%clk 0:00:16.9]} 39... Re7 {[%clk 0:00:20.8]} 40. Qd5 {[%clk 0:00:12.3]}
40... Nd7 {[%clk 0:00:19.4]} 41. Qxc6 {[%clk 0:00:11.7]} 1-0

[Event "Late-Titled-Tuesday-Blitz-August-29-2023"]
[Site "Chess.com"]
[Date "2023.08.29"]
[Round "8"]
[White "burbur555"]
[Black "TanitoluwaAps116"]
[Result "1-0"]
[WhiteElo "2592"]
[BlackElo "2763"]
[TimeControl "180+1"]
[EndTime "15:27:26 PDT"]
[Termination "burbur555 won on time"]

1. c4 {[%clk 0:03:00.9]} 1... e5 {[%clk 0:02:58.1]} 2. g3 {[%clk 0:02:59.8]}
2... Nc6 {[%clk 0:02:57.6]} 3. Bg2 {[%clk 0:03:00]} 3... g6 {[%clk 0:02:57.4]}
4. Nc3 {[%clk 0:03:00.1]} 4... d6 {[%clk 0:02:57.9]} 5. e3 {[%clk 0:02:59.5]}
5... Bg7 {[%clk 0:02:57.3]} 6. Nge2 {[%clk 0:02:58.4]} 6... Nf6 {[%clk
0:02:57.4]} 7. Rb1 {[%clk 0:02:58.2]} 7... Be6 {[%clk 0:02:55.1]} 8. d3 {[%clk
0:02:57.7]} 8... d5 {[%clk 0:02:51.1]} 9. cxd5 {[%clk 0:02:50.3]} 9... Nxd5
{[%clk 0:02:52]} 10. O-O {[%clk 0:02:49.1]} 10... O-O {[%clk 0:02:43.5]} 11. a3
{[%clk 0:02:48.4]} 11... Qd7 {[%clk 0:02:40]} 12. Ne4 {[%clk 0:02:42.3]} 12...
Qe7 {[%clk 0:02:29.3]} 13. Qc2 {[%clk 0:02:37.1]} 13... Rfd8 {[%clk 0:02:22.1]}
14. b4 {[%clk 0:02:30.8]} 14... Rab8 {[%clk 0:02:12.2]} 15. Nc5 {[%clk
0:02:27.5]} 15... Bc8 {[%clk 0:02:11]} 16. Nc3 {[%clk 0:02:16.3]} 16... Nxc3
{[%clk 0:01:51.2]} 17. Qxc3 {[%clk 0:02:15.9]} 17... e4 {[%clk 0:01:51.7]} 18.
d4 {[%clk 0:02:15.4]} 18... Bf5 {[%clk 0:01:27.4]} 19. b5 {[%clk 0:02:13.4]}
19... b6 {[%clk 0:01:24.1]} 20. Na6 {[%clk 0:02:11.2]} 20... Na5 {[%clk
0:01:12.3]} 21. Nxb8 {[%clk 0:02:09.2]} 21... Rxb8 {[%clk 0:01:13.2]} 22. Bd2
{[%clk 0:02:00.1]} 22... h5 {[%clk 0:01:09.1]} 23. Rfc1 {[%clk 0:01:58.2]} 23...
Rc8 {[%clk 0:00:51.9]} 24. Qc2 {[%clk 0:01:54.6]} 24... Nb7 {[%clk 0:00:48]} 25.
Bb4 {[%clk 0:01:53.7]} 25... Nd6 {[%clk 0:00:40.9]} 26. h3 {[%clk 0:01:36.3]}
26... Qd7 {[%clk 0:00:33]} 27. Qc6 {[%clk 0:01:28.8]} 27... Nxb5 {[%clk
0:00:23.8]} 28. Qxd7 {[%clk 0:01:28]} 28... Bxd7 {[%clk 0:00:24.7]} 29. Bxe4
{[%clk 0:01:23.7]} 29... a5 {[%clk 0:00:24.8]} 30. a4 {[%clk 0:01:18.1]} 30...
Nxd4 {[%clk 0:00:25.2]} 31. exd4 {[%clk 0:01:15.7]} 31... axb4 {[%clk
0:00:25.7]} 32. Rxb4 {[%clk 0:01:14.3]} 32... c5 {[%clk 0:00:20.7]} 33. dxc5
{[%clk 0:01:06.1]} 33... bxc5 {[%clk 0:00:21.6]} 34. Rb7 {[%clk 0:01:03.1]}
34... Bxa4 {[%clk 0:00:19.3]} 35. Bd5 {[%clk 0:01:00.6]} 35... Bc6 {[%clk
0:00:18.2]} 36. Bxf7+ {[%clk 0:00:55.9]} 36... Kh7 {[%clk 0:00:17.2]} 37. Re7
{[%clk 0:00:54.1]} 37... Bb5 {[%clk 0:00:06.4]} 38. Re6 {[%clk 0:00:50.8]} 38...
Bd4 {[%clk 0:00:01.8]} 39. Bxg6+ {[%clk 0:00:49.9]} 39... Kg7 {[%clk 0:00:02.2]}
40. Be4 {[%clk 0:00:47.6]} 40... Rf8 {[%clk 0:00:02.7]} 41. Rc2 {[%clk
0:00:43.9]} 41... Ba4 {[%clk 0:00:03.1]} 42. Ra2 {[%clk 0:00:42.7]} 42... Bb3
{[%clk 0:00:03.4]} 43. Ra7+ {[%clk 0:00:42.6]} 43... Kh8 {[%clk 0:00:02.9]} 44.
Rh6+ {[%clk 0:00:41.6]} 44... Kg8 {[%clk 0:00:02.7]} 45. Rg6+ {[%clk 0:00:41.2]}
45... Kh8 {[%clk 0:00:02.9]} 46. Rh6+ {[%clk 0:00:34.5]} 46... Kg8 {[%clk
0:00:03]} 47. Bh7+ {[%clk 0:00:34.4]} 47... Kh8 {[%clk 0:00:03.5]} 48. Bc2+
{[%clk 0:00:34.2]} 1-0

[Event "Late-Titled-Tuesday-Blitz-August-29-2023"]
[Site "Chess.com"]
[Date "2023.08.29"]
[Round "8"]
[White "PNEPaul"]
[Black "MaxLeto"]
[Result "0-1"]
[WhiteElo "1889"]
[BlackElo "2391"]
[TimeControl "180+1"]
[EndTime "15:27:26 PDT"]
[Termination "MaxLeto won on time"]

1. e4 {[%clk 0:02:37.8]} 1... a6 {[%clk 0:03:00.9]} 2. d4 {[%clk 0:02:37.7]}
2... b6 {[%clk 0:03:01.8]} 3. Nc3 {[%clk 0:02:37.4]} 3... c6 {[%clk 0:03:02.7]}
4. Bd3 {[%clk 0:02:37.2]} 4... d6 {[%clk 0:03:03.6]} 5. Nge2 {[%clk 0:02:37]}
5... e6 {[%clk 0:03:04.5]} 6. O-O {[%clk 0:02:36.8]} 6... f6 {[%clk 0:03:05.4]}
7. f4 {[%clk 0:02:36.8]} 7... g6 {[%clk 0:03:06.3]} 8. Ng3 {[%clk 0:02:36.3]}
8... h6 {[%clk 0:03:07.2]} 9. e5 {[%clk 0:02:33.1]} 9... f5 {[%clk 0:03:04]} 10.
Nce2 {[%clk 0:02:13.8]} 10... d5 {[%clk 0:03:00.5]} 11. c3 {[%clk 0:02:13.8]}
11... c5 {[%clk 0:02:52.3]} 12. b3 {[%clk 0:02:09.5]} 12... Bb7 {[%clk
0:02:41.8]} 13. a4 {[%clk 0:02:07.3]} 13... Nd7 {[%clk 0:02:29.1]} 14. Ba3
{[%clk 0:02:06.6]} 14... Ne7 {[%clk 0:02:10.4]} 15. b4 {[%clk 0:01:46.3]} 15...
c4 {[%clk 0:02:07.9]} 16. Bc2 {[%clk 0:01:45.7]} 16... b5 {[%clk 0:02:04.8]} 17.
a5 {[%clk 0:01:43.9]} 17... g5 {[%clk 0:02:02.6]} 18. Bc1 {[%clk 0:01:34.1]}
18... Ng6 {[%clk 0:01:53.4]} 19. Nh5 {[%clk 0:01:26]} 19... Be7 {[%clk
0:01:43.1]} 20. Ng7+ {[%clk 0:01:14.9]} 20... Kf7 {[%clk 0:01:42.9]} 21. Nxf5
{[%clk 0:01:07.4]} 21... exf5 {[%clk 0:01:42.1]} 22. Bxf5 {[%clk 0:01:06.8]}
22... Ndf8 {[%clk 0:01:28.4]} 23. fxg5 {[%clk 0:01:03.3]} 23... Ke8 {[%clk
0:01:21.2]} 24. Nf4 {[%clk 0:00:46]} 24... Nh4 {[%clk 0:01:14]} 25. Ne6 {[%clk
0:00:31.2]} 25... Nxe6 {[%clk 0:00:47.1]} 26. Bxe6 {[%clk 0:00:29]} 26... hxg5
{[%clk 0:00:46.3]} 27. Bf7+ {[%clk 0:00:24.3]} 27... Kd7 {[%clk 0:00:45.8]} 28.
Qg4+ {[%clk 0:00:23.6]} 28... Kc7 {[%clk 0:00:44.5]} 29. e6 {[%clk 0:00:17.8]}
29... Bc6 {[%clk 0:00:38.1]} 30. Bd2 {[%clk 0:00:16.4]} 30... Kb7 {[%clk
0:00:36.7]} 31. Rae1 {[%clk 0:00:15.6]} 31... Qd6 {[%clk 0:00:32.7]} 32. g3
{[%clk 0:00:13.5]} 32... Raf8 {[%clk 0:00:07.7]} 33. gxh4 {[%clk 0:00:07.8]}
33... gxh4 {[%clk 0:00:08]} 34. Bf4 {[%clk 0:00:03.9]} 34... Qd8 {[%clk
0:00:08]} 35. Qh3 {[%clk 0:00:03.4]} 35... Be8 {[%clk 0:00:08.9]} 36. Bxe8
{[%clk 0:00:02.5]} 36... Qxe8 {[%clk 0:00:09.8]} 37. Kh1 {[%clk 0:00:02.3]}
37... Rhg8 {[%clk 0:00:10.7]} 0-1

[Event "Late-Titled-Tuesday-Blitz-August-29-2023"]
[Site "Chess.com"]
[Date "2023.08.29"]
[Round "8"]
[White "Defenstrator"]
[Black "C_K_G"]
[Result "1-0"]
[WhiteElo "2263"]
[BlackElo "2001"]
[TimeControl "180+1"]
[EndTime "15:27:35 PDT"]
[Termination "Defenstrator won by checkmate"]

1. e4 {[%clk 0:03:00.2]} 1... c5 {[%clk 0:02:56.4]} 2. Ke2 {[%clk 0:03:01.1]}
2... Nc6 {[%clk 0:02:54]} 3. Ke3 {[%clk 0:03:01.2]} 3... d5 {[%clk 0:02:53.7]}
4. Ke2 {[%clk 0:02:58.5]} 4... dxe4 {[%clk 0:02:53.1]} 5. Ke1 {[%clk 0:02:58.6]}
5... Nf6 {[%clk 0:02:52.8]} 6. Nc3 {[%clk 0:02:58.7]} 6... e5 {[%clk 0:02:51.9]}
7. Nge2 {[%clk 0:02:58.4]} 7... Bf5 {[%clk 0:02:49.4]} 8. Ng3 {[%clk 0:02:58.5]}
8... Bg6 {[%clk 0:02:49.1]} 9. Bb5 {[%clk 0:02:57.7]} 9... Qc7 {[%clk
0:02:40.7]} 10. Qe2 {[%clk 0:02:55.7]} 10... a6 {[%clk 0:02:40.6]} 11. Bxc6+
{[%clk 0:02:44.7]} 11... Qxc6 {[%clk 0:02:41.5]} 12. b3 {[%clk 0:02:33.8]} 12...
h5 {[%clk 0:02:38.8]} 13. Bb2 {[%clk 0:02:31.5]} 13... h4 {[%clk 0:02:38.3]} 14.
Nf1 {[%clk 0:02:32.4]} 14... O-O-O {[%clk 0:02:36.9]} 15. g4 {[%clk 0:02:28]}
15... Nd5 {[%clk 0:02:29.1]} 16. Nxd5 {[%clk 0:02:20.3]} 16... Qxd5 {[%clk
0:02:28.7]} 17. Ne3 {[%clk 0:02:20.4]} 17... Qc6 {[%clk 0:02:25.1]} 18. Bxe5
{[%clk 0:02:20.5]} 18... f6 {[%clk 0:02:24.4]} 19. Bc3 {[%clk 0:02:12.8]} 19...
Bd6 {[%clk 0:02:23.2]} 20. Kd1 {[%clk 0:02:01.5]} 20... Rhe8 {[%clk 0:02:18.6]}
21. Kc1 {[%clk 0:01:59.7]} 21... Be5 {[%clk 0:02:18.4]} 22. Kb2 {[%clk
0:01:59.4]} 22... b5 {[%clk 0:02:13.7]} 23. Bxe5 {[%clk 0:01:57.5]} 23... Rxe5
{[%clk 0:02:12.9]} 24. a4 {[%clk 0:01:58.3]} 24... Bf7 {[%clk 0:01:51.7]} 25.
axb5 {[%clk 0:01:52.1]} 25... axb5 {[%clk 0:01:51.6]} 26. Ra7 {[%clk 0:01:50]}
26... Be6 {[%clk 0:01:41.4]} 27. Rha1 {[%clk 0:01:48.3]} 27... c4 {[%clk
0:01:36.2]} 28. Ra8+ {[%clk 0:01:28.3]} 28... Kd7 {[%clk 0:01:34]} 29. R1a7+
{[%clk 0:01:15.6]} 29... Ke8 {[%clk 0:01:33.2]} 30. Rxd8+ {[%clk 0:01:15]} 30...
Kxd8 {[%clk 0:01:32.8]} 31. Rxg7 {[%clk 0:01:05.1]} 31... cxb3 {[%clk
0:01:31.5]} 32. cxb3 {[%clk 0:00:55.8]} 32... Qc5 {[%clk 0:01:13.1]} 33. Nc2
{[%clk 0:00:53.5]} 33... Qd5 {[%clk 0:00:56.8]} 34. Qe3 {[%clk 0:00:46.9]} 34...
Rg5 {[%clk 0:00:36.9]} 35. Qb6+ {[%clk 0:00:44.4]} 35... Ke8 {[%clk 0:00:33.8]}
36. Ra7 {[%clk 0:00:11.9]} 36... Qxb3+ {[%clk 0:00:27.1]} 37. Kc1 {[%clk
0:00:12.5]} 37... Bd5 {[%clk 0:00:15.6]} 38. Qb8# {[%clk 0:00:12.2]} 1-0

[Event "Late-Titled-Tuesday-Blitz-August-29-2023"]
[Site "Chess.com"]
[Date "2023.08.29"]
[Round "8"]
[White "ExchangeAB"]
[Black "ural58"]
[Result "1-0"]
[WhiteElo "2440"]
[BlackElo "2506"]
[TimeControl "180+1"]
[EndTime "15:27:37 PDT"]
[Termination "ExchangeAB won on time"]

1. d4 {[%clk 0:03:00.9]} 1... d5 {[%clk 0:02:59.4]} 2. Nc3 {[%clk 0:03:01.1]}
2... Nf6 {[%clk 0:02:58.5]} 3. Bf4 {[%clk 0:03:01.3]} 3... a6 {[%clk 0:02:58.4]}
4. e3 {[%clk 0:03:01.5]} 4... Bd7 {[%clk 0:02:45.6]} 5. Nf3 {[%clk 0:03:00.9]}
5... e6 {[%clk 0:02:34]} 6. Bd3 {[%clk 0:03:00.9]} 6... c5 {[%clk 0:02:31.2]} 7.
dxc5 {[%clk 0:03:00.7]} 7... Bxc5 {[%clk 0:02:30.4]} 8. O-O {[%clk 0:03:00]}
8... Bb4 {[%clk 0:02:25]} 9. Ne2 {[%clk 0:02:49.5]} 9... Nc6 {[%clk 0:02:23.5]}
10. Ng3 {[%clk 0:02:38.8]} 10... Qe7 {[%clk 0:02:13.8]} 11. e4 {[%clk
0:02:38.1]} 11... e5 {[%clk 0:02:11.9]} 12. Bg5 {[%clk 0:02:37.5]} 12... d4
{[%clk 0:02:06.6]} 13. Nh4 {[%clk 0:02:19.8]} 13... Qd8 {[%clk 0:01:11.3]} 14.
Nhf5 {[%clk 0:02:16.7]} 14... Bf8 {[%clk 0:01:08.9]} 15. c3 {[%clk 0:02:07.4]}
15... h6 {[%clk 0:01:08.3]} 16. Bd2 {[%clk 0:02:03.2]} 16... g6 {[%clk
0:01:07.2]} 17. cxd4 {[%clk 0:01:45.6]} 17... gxf5 {[%clk 0:01:06.7]} 18. dxe5
{[%clk 0:01:45.8]} 18... Nxe5 {[%clk 0:01:05.9]} 19. Bc3 {[%clk 0:01:45.8]}
19... Nxd3 {[%clk 0:00:47.1]} 20. Qxd3 {[%clk 0:01:46.7]} 20... Be7 {[%clk
0:00:29.5]} 21. Rfd1 {[%clk 0:01:34.5]} 21... O-O {[%clk 0:00:29.3]} 22. Bxf6
{[%clk 0:01:32.6]} 22... Bxf6 {[%clk 0:00:29.4]} 23. Qxd7 {[%clk 0:01:32.8]}
23... Qxd7 {[%clk 0:00:28.8]} 24. Rxd7 {[%clk 0:01:33.7]} 24... fxe4 {[%clk
0:00:24.5]} 25. Nxe4 {[%clk 0:01:28.1]} 25... Bxb2 {[%clk 0:00:24.1]} 26. Rb1
{[%clk 0:01:28.2]} 26... Bg7 {[%clk 0:00:21.9]} 27. Rbxb7 {[%clk 0:01:26.7]}
27... Rac8 {[%clk 0:00:21.8]} 28. g3 {[%clk 0:01:24.2]} 28... Rc2 {[%clk
0:00:21.4]} 29. Nd6 {[%clk 0:01:18.9]} 29... Bd4 {[%clk 0:00:19.9]} 30. Nxf7
{[%clk 0:01:09.6]} 30... Bxf2+ {[%clk 0:00:17.5]} 31. Kh1 {[%clk 0:01:08.2]}
31... Be3 {[%clk 0:00:17]} 32. a4 {[%clk 0:00:42.1]} 32... Ra2 {[%clk
0:00:16.6]} 33. Re7 {[%clk 0:00:37.2]} 33... Bg5 {[%clk 0:00:15.4]} 34. Red7
{[%clk 0:00:34.7]} 34... a5 {[%clk 0:00:12.5]} 35. Rdc7 {[%clk 0:00:33.8]} 35...
Re8 {[%clk 0:00:12.5]} 36. Ne5 {[%clk 0:00:31.2]} 36... Bf6 {[%clk 0:00:07]} 37.
Nf3 {[%clk 0:00:26.4]} 37... Rxa4 {[%clk 0:00:06.2]} 38. Kg2 {[%clk 0:00:24.4]}
38... Ra2+ {[%clk 0:00:04.7]} 39. Kh3 {[%clk 0:00:24.5]} 39... Rf2 {[%clk
0:00:04.7]} 40. Nh4 {[%clk 0:00:20.9]} 40... Rb2 {[%clk 0:00:03.7]} 41. Ra7
{[%clk 0:00:14]} 41... a4 {[%clk 0:00:03.8]} 42. Nf5 {[%clk 0:00:13.3]} 1-0

[Event "Late-Titled-Tuesday-Blitz-August-29-2023"]
[Site "Chess.com"]
[Date "2023.08.29"]
[Round "8"]
[White "Fonsofan"]
[Black "Jumbo"]
[Result "1-0"]
[WhiteElo "2700"]
[BlackElo "2915"]
[TimeControl "180+1"]
[EndTime "15:27:40 PDT"]
[Termination "Fonsofan won on time"]

1. e4 {[%clk 0:02:53.1]} 1... c5 {[%clk 0:02:59.2]} 2. Nf3 {[%clk 0:02:52.6]}
2... d6 {[%clk 0:02:59.8]} 3. Bb5+ {[%clk 0:02:51.6]} 3... Nd7 {[%clk
0:02:58.8]} 4. c4 {[%clk 0:02:51.9]} 4... Nf6 {[%clk 0:02:57.7]} 5. Nc3 {[%clk
0:02:49]} 5... g6 {[%clk 0:02:58.2]} 6. d4 {[%clk 0:02:48.8]} 6... cxd4 {[%clk
0:02:59.1]} 7. Nxd4 {[%clk 0:02:48.6]} 7... Bg7 {[%clk 0:02:59.5]} 8. f3 {[%clk
0:02:47.1]} 8... O-O {[%clk 0:02:59.7]} 9. Bxd7 {[%clk 0:02:45.2]} 9... Bxd7
{[%clk 0:02:58.3]} 10. b3 {[%clk 0:02:45.1]} 10... Qa5 {[%clk 0:02:55.1]} 11.
Bd2 {[%clk 0:02:41.9]} 11... Qe5 {[%clk 0:02:35.8]} 12. Be3 {[%clk 0:02:39.7]}
12... Rfc8 {[%clk 0:02:31.4]} 13. Qd2 {[%clk 0:02:36.5]} 13... a6 {[%clk
0:02:27.5]} 14. O-O {[%clk 0:02:10.2]} 14... b5 {[%clk 0:02:23.7]} 15. cxb5
{[%clk 0:02:11.1]} 15... axb5 {[%clk 0:02:23.4]} 16. Rfc1 {[%clk 0:02:11.6]}
16... b4 {[%clk 0:02:15.7]} 17. Nce2 {[%clk 0:02:10.8]} 17... Rxc1+ {[%clk
0:02:10.3]} 18. Rxc1 {[%clk 0:02:09.5]} 18... Qa5 {[%clk 0:02:10.1]} 19. Nc6
{[%clk 0:01:50.6]} 19... Qxa2 {[%clk 0:02:06]} 20. Nxe7+ {[%clk 0:01:40.7]}
20... Kf8 {[%clk 0:01:35]} 21. Rc2 {[%clk 0:00:53.9]} 21... Qxb3 {[%clk
0:01:27.3]} 22. Nc6 {[%clk 0:00:49]} 22... Kg8 {[%clk 0:01:02.1]} 23. Nxb4
{[%clk 0:00:48.2]} 23... Ra4 {[%clk 0:00:43.7]} 24. Nc6 {[%clk 0:00:41.2]} 24...
h5 {[%clk 0:00:33.6]} 25. Ncd4 {[%clk 0:00:35.9]} 25... Qb1+ {[%clk 0:00:33.6]}
26. Qc1 {[%clk 0:00:33.3]} 26... Qb4 {[%clk 0:00:25.4]} 27. Qd2 {[%clk
0:00:29.7]} 27... Qb7 {[%clk 0:00:24.6]} 28. Rb2 {[%clk 0:00:26.4]} 28... Qa8
{[%clk 0:00:16.5]} 29. h3 {[%clk 0:00:20.4]} 29... Kh7 {[%clk 0:00:14.5]} 30.
Nc3 {[%clk 0:00:18.2]} 30... Ra1+ {[%clk 0:00:13.6]} 31. Kf2 {[%clk 0:00:16.9]}
31... Qe8 {[%clk 0:00:12.8]} 32. Ra2 {[%clk 0:00:16.5]} 32... Rxa2 {[%clk
0:00:11.3]} 33. Qxa2 {[%clk 0:00:17.4]} 33... Qe7 {[%clk 0:00:07.9]} 34. Qc4
{[%clk 0:00:17.1]} 34... Be8 {[%clk 0:00:07.3]} 35. Nd5 {[%clk 0:00:17]} 35...
Nxd5 {[%clk 0:00:06.1]} 36. Qxd5 {[%clk 0:00:17.9]} 36... Bd7 {[%clk 0:00:05.6]}
37. Nb5 {[%clk 0:00:16.4]} 37... Bf8 {[%clk 0:00:03.7]} 38. Bf4 {[%clk
0:00:15.8]} 38... Be6 {[%clk 0:00:03.6]} 39. Bxd6 {[%clk 0:00:14.1]} 39... Qe8
{[%clk 0:00:02.5]} 40. Qc5 {[%clk 0:00:14.3]} 40... Bg7 {[%clk 0:00:02.7]} 41.
Kg3 {[%clk 0:00:13.3]} 41... Qd7 {[%clk 0:00:02.6]} 42. Kh2 {[%clk 0:00:13.1]}
1-0